fUSD/lending_fUSD_20240919
["ID","MTS","AMOUNT","RATE_DAILY","PERIOD"]
[338497301,1726704647118,-2135.95,0.0001452,2]
[338497303,1726704647127,-677.7,0.0001452,2]
[338497304,1726704647136,-500.0,0.0001452,2]
[338497306,1726704647145,-1015.66,0.0001452,2]
[338497308,1726704647154,-500.0,0.0001452,2]
[338497310,1726704647163,-533.82,0.0001452,2]
[338497312,1726704647172,-500.0,0.0001452,2]
[338497314,1726704647183,-664.42,0.0001452,2]
[338497316,1726704647192,-500.0,0.0001452,2]
[338497318,1726704647202,-500.0,0.0001452,2]
[338497320,1726704647211,-1297.47,0.0001452,2]
[338497322,1726704647221,-500.0,0.0001452,2]
[338497324,1726704647233,-2003.06,0.0001452,2]
[338497326,1726704647243,-500.0,0.0001452,2]
[338497328,1726704647252,-4291.35,0.0001452,2]
[338497330,1726704647261,-3557.82,0.0001452,2]
[338497332,1726704647270,-618.09,0.0001452,2]
[338497334,1726704647280,-1617.39,0.0001452,2]
[338497336,1726704647289,-500.0,0.0001452,2]
[338497337,1726704647298,-500.0,0.0001452,2]
[338497339,1726704647307,-500.0,0.0001452,2]
[338497341,1726704647316,-536.19,0.0001452,2]
[338497343,1726704647326,-805.04,0.0001452,2]
[338497345,1726704647335,-500.0,0.0001452,2]
[338497347,1726704647344,-500.0,0.0001452,2]
[338497349,1726704647353,-864.56,0.0001452,2]
[338497351,1726704647362,-805.78,0.0001452,2]
[338497353,1726704647371,-500.0,0.0001452,2]
[338497355,1726704647381,-1459.17,0.0001452,2]
[338497357,1726704647391,-500.0,0.0001452,2]
[338497359,1726704647400,-500.0,0.0001452,2]
[338497361,1726704647409,-873.72,0.0001452,2]
[338497363,1726704647418,-812.37,0.0001452,2]
[338497365,1726704647428,-500.0,0.0001452,2]
[338497367,1726704647437,-500.0,0.0001452,2]
[338497369,1726704647446,-500.0,0.0001452,2]
[338497371,1726704647455,-2658.44,0.0001452,2]
[338497373,1726704647464,-3652.88,0.0001452,2]
[338497375,1726704647474,-500.0,0.0001452,2]
[338497377,1726704647486,-4628.59,0.0001452,2]
[338497379,1726704647495,-500.0,0.0001452,2]
[338497381,1726704647504,-500.0,0.0001452,2]
[338497382,1726704647514,-500.0,0.0001452,2]
[338497384,1726704647523,-500.0,0.0001452,2]
[338497386,1726704647532,-3205.67,0.0001452,2]
[338497388,1726704647542,-500.0,0.0001452,2]
[338497390,1726704647551,-500.0,0.0001452,2]
[338497392,1726704647560,-1409.73,0.0001452,2]
[338497393,1726704647570,-4941.4,0.0001452,2]
[338497394,1726704647579,-1386.75,0.0001452,2]
[338497395,1726704647588,-500.0,0.0001452,2]
[338497396,1726704647597,-500.0,0.0001452,2]
[338497397,1726704647606,-1066.98,0.0001452,2]
[338497398,1726704647615,-500.0,0.0001452,2]
[338497399,1726704647625,-773.03,0.0001452,2]
[338497400,1726704647634,-500.0,0.0001452,2]
[338497401,1726704647643,-861.68,0.0001452,2]
[338497402,1726704647652,-4374.25,0.0001452,2]
[338497403,1726704647662,-500.0,0.0001452,2]
[338497404,1726704647671,-512.5,0.0001452,2]
[338497405,1726704647680,-867.87,0.0001452,2]
[338497406,1726704647690,-500.0,0.0001452,2]
[338497407,1726704647699,-1064.09,0.0001452,2]
[338497408,1726704647708,-500.0,0.0001452,2]
[338497409,1726704647717,-500.0,0.0001452,2]
[338497411,1726704647728,-2775.44,0.0001452,2]
[338497412,1726704647737,-3173.71,0.0001452,2]
[338497414,1726704647746,-1261.52,0.0001452,2]
[338497416,1726704647755,-500.0,0.0001452,2]
[338497418,1726704647764,-500.0,0.0001452,2]
[338497420,1726704647773,-3805.64,0.0001452,2]
[338497421,1726704647782,-795.69,0.0001452,2]
[338497423,1726704647791,-500.0,0.0001452,2]
[338497425,1726704647801,-2220.79,0.0001452,2]
[338497427,1726704647810,-4672.47,0.0001452,2]
[338497429,1726704647819,-500.0,0.0001452,2]
[338497431,1726704647828,-500.0,0.0001452,2]
[338497433,1726704647839,-1639.85,0.0001452,2]
[338497435,1726704647850,-1921.57,0.0001452,2]
[338497437,1726704647859,-2046.91,0.0001452,2]
[338497439,1726704647869,-500.0,0.0001452,2]
[338497441,1726704647879,-1284.76,0.0001452,2]
[338497443,1726704647890,-2906.92,0.0001452,2]
[338497445,1726704647900,-500.0,0.0001452,2]
[338497447,1726704647912,-500.0,0.0001452,2]
[338497449,1726704647922,-500.0,0.0001452,2]
[338497450,1726704647932,-603.95,0.0001452,2]
[338497451,1726704647941,-3634.37,0.0001452,2]
[338497452,1726704647952,-3932.02,0.0001452,2]
[338497453,1726704647961,-2928.0,0.0001452,2]
[338497454,1726704647971,-647.04,0.0001452,2]
[338497455,1726704647985,-500.0,0.0001452,2]
[338497456,1726704648000,-2249.11,0.0001452,2]
[338497457,1726704648010,-500.0,0.0001452,2]
[338497458,1726704648019,-579.52,0.0001452,2]
[338497459,1726704648028,-12217.87,0.0001452,2]
[338497460,1726704648039,-656.64,0.0001452,2]
[338497461,1726704648048,-812.84,0.0001452,2]
[338497462,1726704648058,-500.0,0.0001452,2]
[338497463,1726704648068,-1315.82,0.0001452,2]
[338497464,1726704648078,-1929.78,0.0001452,2]
[338497465,1726704648087,-515.80693144,0.0001452,2]
[338497466,1726704648097,-1650.38,0.0001452,2]
[338497467,1726704648107,-4461.04,0.0001452,2]
[338497468,1726704648117,-1549.57,0.0001452,2]
[338497469,1726704648127,-1065.93,0.0001452,2]
[338497470,1726704648137,-500.0,0.0001452,2]
[338497471,1726704648147,-1495.17,0.0001452,2]
[338497472,1726704648157,-4615.12,0.0001452,2]
[338497473,1726704648167,-5610.65,0.0001452,2]
[338497474,1726704648180,-2886.45,0.0001452,2]
[338497475,1726704648190,-606.37,0.0001452,2]
[338497476,1726704648200,-500.0,0.0001452,2]
[338497477,1726704648210,-520.81,0.0001452,2]
[338497478,1726704648220,-1603.81,0.0001452,2]
[338497479,1726704648240,-500.0,0.0001452,2]
[338497480,1726704648250,-500.0,0.0001452,2]
[338497481,1726704648260,-1534.05,0.0001452,2]
[338497482,1726704648269,-1153.37,0.0001452,2]
[338497483,1726704648279,-1422.49,0.0001452,2]
[338497484,1726704648289,-500.0,0.0001452,2]
[338497485,1726704648299,-1559.36,0.0001452,2]
[338497486,1726704648308,-500.0,0.0001452,2]
[338497487,1726704648318,-4318.26,0.0001452,2]
[338497488,1726704648327,-3058.14,0.0001452,2]
[338497489,1726704648338,-2075.59,0.0001452,2]
[338497490,1726704648347,-1656.33,0.0001452,2]
[338497491,1726704648357,-500.0,0.0001452,2]
[338497492,1726704648367,-1534.9,0.0001452,2]
[338497493,1726704648377,-500.38,0.0001452,2]
[338497494,1726704648386,-2197.93,0.0001452,2]
[338497495,1726704648396,-500.0,0.0001452,2]
[338497496,1726704648406,-2518.61,0.0001452,2]
[338497497,1726704648415,-556.62,0.0001452,2]
[338497498,1726704648425,-500.0,0.0001452,2]
[338497499,1726704648434,-7047.65,0.0001452,2]
[338497500,1726704648445,-2143.43,0.0001452,2]
[338497501,1726704648454,-10027.19,0.0001452,2]
[338497502,1726704648464,-500.0,0.0001452,2]
[338497503,1726704648474,-15743.13407642,0.0001452,2]
[338497504,1726704648489,-5972.93,0.0001452,2]
[338497505,1726704648499,-500.0,0.0001452,2]
[338497506,1726704648509,-500.0,0.0001452,2]
[338497507,1726704648518,-1070.65,0.0001452,2]
[338497508,1726704648528,-500.0,0.0001452,2]
[338497509,1726704648537,-2329.79,0.0001452,2]
[338497510,1726704648547,-4031.49,0.0001452,2]
[338497511,1726704648556,-500.0,0.0001452,2]
[338497512,1726704648566,-500.0,0.0001452,2]
[338497513,1726704648576,-762.58,0.0001452,2]
[338497514,1726704648586,-500.0,0.0001452,2]
[338497515,1726704648595,-1038.62,0.0001452,2]
[338497516,1726704648605,-500.0,0.0001452,2]
[338497517,1726704648615,-643.47,0.0001452,2]
[338497518,1726704648624,-3205.12,0.0001452,2]
[338497519,1726704648634,-500.0,0.0001452,2]
[338497520,1726704648643,-500.0,0.0001452,2]
[338497521,1726704648654,-469.9,0.0001452,2]
[338497522,1726704648664,-2763.54,0.0001452,2]
[338497523,1726704648674,-500.0,0.0001452,2]
[338497524,1726704648684,-519.67,0.0001452,2]
[338497525,1726704648693,-647.14774513,0.0001452,2]
[338497526,1726704648703,-1617.39,0.0001452,2]
[338497527,1726704648712,-1160.08,0.0001452,2]
[338497528,1726704648722,-500.0,0.0001452,2]
[338497529,1726704648733,-818.36,0.0001452,2]
[338497530,1726704648742,-817.77,0.0001452,2]
[338497531,1726704648752,-1102.05,0.0001452,2]
[338497532,1726704648761,-500.0,0.0001452,3]
[338497533,1726704648771,-500.0,0.0001452,2]
[338497534,1726704648781,-2754.84,0.0001452,2]
[338497535,1726704648791,-500.0,0.0001452,2]
[338497536,1726704648800,-500.0,0.0001452,2]
[338497537,1726704648810,-500.0,0.0001452,2]
[338497538,1726704648819,-1069.38,0.0001452,2]
[338497539,1726704648829,-500.0,0.0001452,2]
[338497540,1726704648841,-500.0,0.0001452,2]
[338497541,1726704648851,-500.0,0.0001452,2]
[338497542,1726704648861,-500.0,0.0001452,2]
[338497543,1726704648870,-1158.28,0.0001452,2]
[338497544,1726704648882,-500.0,0.0001452,2]
[338497545,1726704648892,-3651.88,0.0001452,2]
[338497546,1726704648902,-500.0,0.0001452,2]
[338497547,1726704648913,-591.38040947,0.0001452,2]
[338497548,1726704648923,-1177.78,0.0001452,2]
[338497549,1726704648933,-5201.23,0.0001452,2]
[338497550,1726704648943,-500.0,0.0001452,2]
[338497551,1726704648953,-1383.91,0.0001452,2]
[338497552,1726704648963,-500.0,0.0001452,2]
[338497553,1726704648973,-4676.82,0.0001452,2]
[338497554,1726704648985,-2927.81,0.0001452,2]
[338497555,1726704648995,-1873.36,0.0001452,2]
[338497556,1726704649007,-836.99,0.0001452,2]
[338497557,1726704649017,-500.0,0.0001452,2]
[338497558,1726704649029,-1774.86,0.0001452,2]
[338497559,1726704649039,-3553.16,0.0001452,2]
[338497560,1726704649049,-500.0,0.0001452,2]
[338497561,1726704649059,-2181.48,0.0001452,2]
[338497562,1726704649069,-769.9,0.0001452,2]
[338497563,1726704649080,-500.0,0.0001452,2]
[338497564,1726704649089,-2947.66,0.0001452,2]
[338497565,1726704649099,-1022.88,0.0001452,2]
[338497566,1726704649109,-500.0,0.0001452,2]
[338497567,1726704649119,-500.0,0.0001452,2]
[338497568,1726704649128,-14557.66,0.0001452,2]
[338497569,1726704649138,-3502.85,0.0001452,2]
[338497570,1726704649148,-500.0,0.0001452,2]
[338497571,1726704649159,-500.0,0.0001452,2]
[338497572,1726704649169,-193.45186724,0.0001452,2]
[338497573,1726704649178,-528.88309504,0.0001452,2]
[338497574,1726704649190,-500.0,0.0001452,2]
[338497575,1726704649199,-908.66,0.0001452,2]
[338497576,1726704649209,-1324.12,0.0001452,2]
[338497577,1726704649219,-500.0,0.0001452,2]
[338497578,1726704649229,-944.05,0.0001452,2]
[338497579,1726704649238,-2850.88,0.0001452,2]
[338497580,1726704649248,-6015.11,0.0001452,2]
[338497581,1726704649259,-500.0,0.0001452,2]
[338497582,1726704649270,-1117.59,0.0001452,2]
[338497583,1726704649280,-11302.4,0.0001452,2]
[338497584,1726704649290,-8919.77,0.0001452,2]
[338497585,1726704649300,-3957.04,0.0001452,2]
[338497586,1726704649310,-500.0,0.0001452,2]
[338497587,1726704649319,-1600.67,0.0001452,2]
[338497588,1726704649329,-9535.06,0.0001452,2]
[338497589,1726704649339,-500.0,0.0001452,2]
[338497590,1726704649349,-500.0,0.0001452,2]
[338497591,1726704649358,-10891.98,0.0001452,2]
[338497592,1726704649368,-1210.55,0.0001452,2]
[338497593,1726704649378,-500.0,0.0001452,2]
[338497594,1726704649387,-918.95,0.0001452,2]
[338497595,1726704649397,-532.27,0.0001452,2]
[338497596,1726704649407,-500.0,0.0001452,2]
[338497597,1726704649418,-1201.26,0.0001452,2]
[338497598,1726704649428,-732.15,0.0001452,2]
[338497599,1726704649438,-500.0,0.0001452,2]
[338497600,1726704649448,-2442.11,0.0001452,2]
[338497601,1726704649459,-4042.84,0.0001452,2]
[338497602,1726704649468,-4496.92,0.0001452,2]
[338497603,1726704649480,-500.0,0.0001452,2]
[338497604,1726704649489,-500.0,0.0001452,2]
[338497605,1726704649499,-2890.8,0.0001452,2]
[338497606,1726704649509,-500.0,0.0001452,2]
[338497607,1726704649519,-1153.75,0.0001452,2]
[338497608,1726704649529,-500.0,0.0001452,2]
[338497609,1726704649539,-938.91,0.0001452,2]
[338497610,1726704649549,-500.0,0.0001452,2]
[338497611,1726704649559,-1012.22,0.0001452,2]
[338497612,1726704649569,-537.87,0.0001452,2]
[338497613,1726704649579,-4962.76,0.0001452,2]
[338497614,1726704649589,-4246.25,0.0001452,2]
[338497615,1726704649601,-6384.06,0.0001452,2]
[338497616,1726704649612,-2268.16,0.0001452,2]
[338497617,1726704649621,-1002.91,0.0001452,2]
[338497618,1726704649631,-1055.56,0.0001452,2]
[338497619,1726704649641,-4881.38,0.0001452,2]
[338497620,1726704649652,-5864.62,0.0001452,2]
[338497621,1726704649662,-500.0,0.0001452,2]
[338497622,1726704649671,-500.0,0.0001452,2]
[338497623,1726704649681,-514.24537743,0.0001452,2]
[338497624,1726704649691,-5728.16,0.0001452,2]
[338497625,1726704649701,-1150.86,0.0001452,2]
[338497626,1726704649711,-1011.77,0.0001452,2]
[338497627,1726704649721,-805.45,0.0001452,2]
[338497628,1726704649734,-500.0,0.0001452,2]
[338497629,1726704649748,-31390.67,0.0001452,2]
[338497630,1726704649757,-592.06,0.0001452,2]
[338497631,1726704649767,-5701.05,0.0001452,2]
[338497632,1726704649777,-823.28,0.0001452,2]
[338497633,1726704649786,-1942.57,0.0001452,2]
[338497634,1726704649796,-6852.74,0.0001452,2]
[338497635,1726704649806,-500.0,0.0001452,2]
[338497636,1726704649816,-803.83,0.0001452,2]
[338497637,1726704649826,-988.46,0.0001452,2]
[338497638,1726704649837,-5815.5,0.0001452,2]
[338497639,1726704649849,-500.0,0.0001452,2]
[338497640,1726704649860,-500.0,0.0001452,2]
[338497641,1726704649870,-500.0,0.0001452,2]
[338497642,1726704649880,-678.99,0.0001452,2]
[338497643,1726704649889,-761.19,0.0001452,2]
[338497644,1726704649899,-500.0,0.0001452,2]
[338497645,1726704649909,-500.0,0.0001452,2]
[338497646,1726704649919,-1101.35,0.0001452,2]
[338497647,1726704649929,-500.0,0.0001452,2]
[338497648,1726704649938,-1161.99,0.0001452,2]
[338497649,1726704649948,-4462.05,0.0001452,2]
[338497650,1726704649958,-66501.13,0.0001452,2]
[338497651,1726704649968,-6931.74,0.0001452,2]
[338497652,1726704649980,-1883.8,0.0001452,2]
[338497653,1726704649990,-500.0,0.0001452,2]
[338497654,1726704650000,-4175.99,0.0001452,2]
[338497655,1726704650010,-500.0,0.0001452,2]
[338497656,1726704650020,-500.0,0.0001452,2]
[338497657,1726704650030,-722.31,0.0001452,2]
[338497658,1726704650040,-2329.12,0.0001452,2]
[338497659,1726704650050,-500.0,0.0001452,2]
[338497660,1726704650060,-500.0,0.0001452,2]
[338497661,1726704650070,-783.85,0.0001452,2]
[338497662,1726704650361,-4515.19,0.0001452,2]
[338497663,1726704650371,-1265.99,0.0001452,2]
[338497664,1726704650380,-3649.29,0.0001452,2]
[338497665,1726704650389,-838.68,0.0001452,2]
[338497666,1726704650398,-500.0,0.0001452,2]
[338497667,1726704650408,-18233.34,0.0001452,2]
[338497668,1726704650418,-1754.85,0.0001452,2]
[338497669,1726704650427,-500.0,0.0001452,2]
[338497670,1726704650436,-3568.37,0.0001452,2]
[338497671,1726704650446,-2224.37,0.0001452,2]
[338497672,1726704650455,-2779.33,0.0001452,2]
[338497673,1726704650464,-500.0,0.0001452,2]
[338497674,1726704650475,-500.0,0.0001452,2]
[338497675,1726704650487,-500.0,0.0001452,2]
[338497676,1726704650497,-1988.47,0.0001452,2]
[338497677,1726704650506,-2649.46,0.0001452,2]
[338497678,1726704650516,-2390.96,0.0001452,2]
[338497679,1726704650525,-7103.25,0.0001452,2]
[338497680,1726704650535,-614.28,0.0001452,2]
[338497681,1726704650544,-500.0,0.0001452,2]
[338497682,1726704650554,-657.65,0.0001452,2]
[338497683,1726704650564,-8455.87,0.0001452,2]
[338497684,1726704650573,-500.0,0.0001452,2]
[338497685,1726704650583,-1318.12,0.0001452,2]
[338497686,1726704650592,-500.0,0.0001452,2]
[338497687,1726704650601,-500.0,0.0001452,2]
[338497688,1726704650611,-9395.88,0.0001452,2]
[338497689,1726704650620,-2601.83,0.0001452,2]
[338497690,1726704650629,-1971.86,0.0001452,2]
[338497691,1726704650639,-1147.63,0.0001452,2]
[338497692,1726704650649,-2098.17,0.0001452,2]
[338497693,1726704650658,-511.75,0.0001452,2]
[338497694,1726704650667,-500.0,0.0001452,2]
[338497695,1726704650676,-4312.79,0.0001452,2]
[338497696,1726704650685,-500.0,0.0001452,2]
[338497697,1726704650695,-2886.71,0.0001452,2]
[338497698,1726704650704,-785.78,0.0001452,2]
[338497699,1726704650714,-4021.55,0.0001452,2]
[338497700,1726704650723,-500.0,0.0001452,2]
[338497701,1726704650734,-500.0,0.0001452,2]
[338497702,1726704650744,-5362.68,0.0001452,2]
[338497703,1726704650753,-500.0,0.0001452,2]
[338497704,1726704650762,-491.94839903,0.0001452,2]
[338497705,1726704650771,-1212.98,0.0001452,2]
[338497706,1726704650781,-500.0,0.0001452,2]
[338497707,1726704650790,-945.95,0.0001452,2]
[338497708,1726704650800,-306.08247619,0.0001452,2]
[338497709,1726704650810,-500.0,0.0001452,2]
[338497710,1726704650819,-3406.57,0.0001452,2]
[338497711,1726704650829,-6127.28,0.0001452,2]
[338497712,1726704650840,-11439.43,0.0001452,2]
[338497713,1726704650851,-4509.89,0.0001452,2]
[338497714,1726704650861,-500.0,0.0001452,2]
[338497715,1726704650870,-500.0,0.0001452,2]
[338497716,1726704650880,-3115.91,0.0001452,2]
[338497717,1726704650890,-798.2,0.0001452,2]
[338497718,1726704650900,-3958.52,0.0001452,2]
[338497719,1726704650910,-500.0,0.0001452,2]
[338497720,1726704650921,-500.0,0.0001452,2]
[338497721,1726704650930,-1819.15,0.0001452,2]
[338497722,1726704650940,-1024.46,0.0001452,2]
[338497723,1726704650949,-500.0,0.0001452,2]
[338497724,1726704650959,-500.0,0.0001452,2]
[338497725,1726704650968,-500.0,0.0001452,2]
[338497726,1726704650979,-6844.01,0.0001452,2]
[338497727,1726704650989,-4472.38,0.0001452,2]
[338497728,1726704650999,-612.07,0.0001452,2]
[338497729,1726704651009,-500.0,0.0001452,2]
[338497730,1726704651018,-1216.45,0.0001452,2]
[338497731,1726704651027,-959.16,0.0001452,2]
[338497732,1726704651037,-1894.46,0.0001452,2]
[338497733,1726704651046,-636.61,0.0001452,2]
[338497734,1726704651056,-1164.15,0.0001452,2]
[338497735,1726704651065,-500.0,0.0001452,2]
[338497736,1726704651075,-5800.3,0.0001452,2]
[338497737,1726704651085,-1855.71,0.0001452,2]
[338497738,1726704651094,-500.0,0.0001452,2]
[338497739,1726704651103,-9072.14,0.0001452,2]
[338497740,1726704651113,-500.0,0.0001452,2]
[338497741,1726704651122,-895.17,0.0001452,2]
[338497742,1726704651132,-532.3,0.0001452,2]
[338497743,1726704651141,-3466.3,0.0001452,2]
[338497744,1726704651151,-500.0,0.0001452,2]
[338497745,1726704651161,-1012.21,0.0001452,2]
[338497746,1726704651170,-500.0,0.0001452,2]
[338497747,1726704651181,-573.86,0.0001452,2]
[338497748,1726704651190,-1384.14,0.0001452,2]
[338497749,1726704651200,-588.69,0.0001452,2]
[338497750,1726704651209,-500.0,0.0001452,2]
[338497751,1726704651219,-629.59,0.0001452,2]
[338497752,1726704651230,-500.0,0.0001452,2]
[338497753,1726704651239,-11140.76,0.0001452,2]
[338497754,1726704651249,-515.01,0.0001452,2]
[338497755,1726704651258,-3815.83,0.0001452,2]
[338497756,1726704651268,-500.0,0.0001452,2]
[338497757,1726704651277,-4317.63,0.0001452,2]
[338497758,1726704651287,-1330.16,0.0001452,2]
[338497759,1726704651296,-500.0,0.0001452,2]
[338497760,1726704651305,-2165.84,0.0001452,2]
[338497761,1726704651314,-10219.86,0.0001452,2]
[338497762,1726704651324,-839.82,0.0001452,2]
[338497763,1726704651333,-1199.12,0.0001452,2]
[338497764,1726704651342,-942.85,0.0001452,2]
[338497765,1726704651351,-3961.53,0.0001452,2]
[338497766,1726704651361,-500.0,0.0001452,2]
[338497767,1726704651370,-500.0,0.0001452,2]
[338497768,1726704651379,-1253.47,0.0001452,2]
[338497769,1726704651389,-1795.7,0.0001452,2]
[338497770,1726704651399,-1867.93,0.0001452,2]
[338497771,1726704651408,-1173.3,0.0001452,2]
[338497772,1726704651417,-1795.15,0.0001452,2]
[338497773,1726704651427,-500.0,0.0001452,2]
[338497774,1726704651436,-758.3,0.0001452,2]
[338497775,1726704651445,-500.0,0.0001452,2]
[338497776,1726704651455,-821.85,0.0001452,2]
[338497777,1726704651464,-1338.15,0.0001452,2]
[338497778,1726704651473,-2507.75,0.0001452,2]
[338497779,1726704651484,-8529.67,0.0001452,2]
[338497780,1726704651493,-1204.3,0.0001452,2]
[338497781,1726704651502,-821.77,0.0001452,2]
[338497782,1726704651512,-500.0,0.0001452,2]
[338497783,1726704651521,-880.97,0.0001452,2]
[338497784,1726704651531,-500.0,0.0001452,2]
[338497785,1726704651541,-1592.82,0.0001452,2]
[338497786,1726704651550,-1592.88,0.0001452,2]
[338497787,1726704651559,-682.59,0.0001452,2]
[338497788,1726704651569,-500.0,0.0001452,2]
[338497789,1726704651578,-2179.35,0.0001452,2]
[338497790,1726704651587,-500.0,0.0001452,2]
[338497791,1726704651597,-1010.5,0.0001452,2]
[338497792,1726704651606,-500.0,0.0001452,2]
[338497793,1726704651615,-3247.79,0.0001452,2]
[338497794,1726704651625,-177.83305512,0.0001452,2]
[338497795,1726704651635,-718.94,0.0001452,2]
[338497796,1726704651645,-4378.65,0.0001452,2]
[338497797,1726704651655,-4433.26,0.0001452,2]
[338497798,1726704651664,-500.0,0.0001452,2]
[338497799,1726704651674,-962.54,0.0001452,2]
[338497800,1726704651683,-500.0,0.0001452,2]
[338497801,1726704651693,-2471.23,0.0001452,2]
[338497802,1726704651702,-500.0,0.0001452,2]
[338497803,1726704651711,-648.71449161,0.0001452,2]
[338497804,1726704651721,-1578.53,0.0001452,2]
[338497805,1726704651731,-500.0,0.0001452,2]
[338497806,1726704651740,-6632.6,0.0001452,2]
[338497807,1726704651750,-5590.61,0.0001452,2]
[338497808,1726704651759,-500.0,0.0001452,2]
[338497809,1726704651768,-3882.24,0.0001452,2]
[338497810,1726704651777,-2330.82,0.0001452,2]
[338497811,1726704651786,-500.0,0.0001452,2]
[338497812,1726704651795,-500.0,0.0001452,2]
[338497813,1726704651804,-720.65,0.0001452,2]
[338497814,1726704651813,-12153.2,0.0001452,2]
[338497815,1726704651823,-503.37232822,0.0001452,2]
[338497816,1726704651833,-500.0,0.0001452,2]
[338497817,1726704651846,-500.0,0.0001452,2]
[338497818,1726704651855,-4559.0,0.0001452,2]
[338497819,1726704651864,-557.14609607,0.0001452,2]
[338497820,1726704651874,-3749.2,0.0001452,2]
[338497821,1726704651884,-500.0,0.0001452,2]
[338497822,1726704651894,-500.0,0.0001452,2]
[338497823,1726704651904,-570.73,0.0001452,2]
[338497824,1726704651915,-500.0,0.0001452,2]
[338497825,1726704651924,-500.0,0.0001452,2]
[338497826,1726704651934,-500.0,0.0001452,2]
[338497827,1726704651943,-956.0,0.0001452,2]
[338497828,1726704651952,-500.0,0.0001452,2]
[338497829,1726704651962,-862.87,0.0001452,2]
[338497830,1726704651971,-18947.96,0.0001452,2]
[338497831,1726704651981,-500.0,0.0001452,2]
[338497832,1726704651990,-1456.59,0.0001452,2]
[338497833,1726704652000,-500.0,0.0001452,2]
[338497834,1726704652009,-4279.85,0.0001452,2]
[338497835,1726704652019,-500.0,0.0001452,2]
[338497836,1726704652029,-2635.26,0.0001452,2]
[338497837,1726704652039,-500.0,0.0001452,2]
[338497838,1726704652049,-1258.77,0.0001452,2]
[338497839,1726704652059,-500.0,0.0001452,2]
[338497840,1726704652069,-500.0,0.0001452,2]
[338497841,1726704652079,-811.42,0.0001452,2]
[338497842,1726704652089,-871.87,0.0001452,2]
[338497843,1726704652099,-487.57272473,0.0001452,2]
[338497844,1726704652996,-5110.16727527,0.0001452,2]
[338497845,1726704653006,-500.0,0.0001452,2]
[338497846,1726704653015,-1970.05,0.0001452,2]
[338497847,1726704653024,-4560.23,0.0001452,2]
[338497848,1726704653034,-620.0,0.0001452,2]
[338497849,1726704653043,-656.28,0.0001452,2]
[338497850,1726704653052,-3044.57,0.0001452,2]
[338497851,1726704653061,-500.0,0.0001452,2]
[338497852,1726704653070,-500.0,0.0001452,2]
[338497853,1726704653079,-500.0,0.0001452,2]
[338497854,1726704653088,-500.0,0.0001452,2]
[338497855,1726704653098,-544.66,0.0001452,2]
[338497856,1726704653107,-4531.71,0.0001452,2]
[338497857,1726704653116,-1012.84,0.0001452,2]
[338497858,1726704653125,-500.0,0.0001452,2]
[338497859,1726704653134,-500.0,0.0001452,2]
[338497860,1726704653143,-3188.02,0.0001452,2]
[338497861,1726704653152,-500.0,0.0001452,2]
[338497862,1726704653161,-500.0,0.0001452,2]
[338497863,1726704653171,-500.0,0.0001452,2]